{"text_format":"3","workbook":"xlsx","n_sheets":5,"sheets":["Nadzorna ploča","Troškovi i prihod","Izvješće o proračunu","Popisi podataka","Zaokretna tablica kategorija"],"not_rendered":{"charts":3,"defined_names":18,"pivot_tables":2},"read":"whole","date_system":"1900"}

{"sheet":"Nadzorna ploča","index":0,"n_rows":21,"n_cols":16,"rows_kept":21,"merged":[[5,2,5,3],[8,9,8,10],[9,9,9,10],[10,9,10,10]]}
[]
[null,null,"Polumjesečni kućni proračun",{"$nulls":12},"NADZORNA PLOČA"]
[]
[]
[]
[null,null,{"$f":"CHOOSE(BrojMjeseca,\"Siječanj\",\"Veljača\",\"Ožujak\",\"Travanj\",\"Svibanj\",\"Lipanj\",\"Srpanj\",\"Kolovoz\",\"Rujan\",\"Listopad\",\"Studeni\",\"Prosinac\")","v":"Rujan"},null,9,{"$nulls":5},2012]
[]
[]
[null,null,"MJESEČNI UKUPNI IZNOSI","Monthly Totals",{"$nulls":5},"GODIŠNJI UKUPNI IZNOSI",null,"Annual Totals"]
[null,null,"PRIHOD","Troškovi",{"$f":"SUMIF(Troškovi[DATUM],\"<=\"&DatumKrajaMjeseca,Troškovi[IZNOS])-SUMIF(Troškovi[DATUM],\"<\"&DatumPočetkaMjeseca,Troškovi[IZNOS])","v":{"v":0,"d":"0 kn"}},{"$nulls":4},"PRIHOD",null,"Troškovi",{"$f":"SUM(IF(YEAR(Troškovi[DATUM])=K6,Troškovi[IZNOS]))","v":{"v":1225,"d":"1,225 kn"}}]
[null,null,"TROŠKOVI","prihod",{"$f":"SUMIF(prihod[DATUM],\"<=\"&DatumKrajaMjeseca,prihod[IZNOS])-SUMIF(prihod[DATUM],\"<\"&DatumPočetkaMjeseca,prihod[IZNOS])","v":{"v":0,"d":"0 kn"}},{"$nulls":4},"TROŠKOVI",null,"prihod",{"$f":"SUM(IF(YEAR(prihod[DATUM])=K6,prihod[IZNOS]))","v":{"v":0,"d":"0 kn"}}]
[]
[]
[]
[]
[]
[{"$nulls":3},"SIJEČANJ","VELJAČA","OŽUJAK","TRAVANJ","SVIBANJ","LIPANJ","SRPANJ","KOLOVOZ","RUJAN","LISTOPAD","STUDENI","PROSINAC"]
[null,null,"Prihod 1 – 15",{"$f":"SUMIFS(prihod[IZNOS],prihod[OPIS],\"<=\"&DatumSredine,prihod[OPIS],\">=\"&DatumPočetka)","v":{"v":0,"d":"0.00 kn"}},{"$f":"SUMIFS(prihod[IZNOS],prihod[OPIS],\"<=\"&DatumSredine,prihod[OPIS],\">=\"&DatumPočetka)","v":{"v":0,"d":"0.00 kn"}},{"$f":"SUMIFS(prihod[IZNOS],prihod[OPIS],\"<=\"&DatumSredine,prihod[OPIS],\">=\"&DatumPočetka)","v":{"v":0,"d":"0.00 kn"}},{"$f":"SUMIFS(prihod[IZNOS],prihod[OPIS],\"<=\"&DatumSredine,prihod[OPIS],\">=\"&DatumPočetka)","v":{"v":0,"d":"0.00 kn"}},{"$f":"SUMIFS(prihod[IZNOS],prihod[OPIS],\"<=\"&DatumSredine,prihod[OPIS],\">=\"&DatumPočetka)","v":{"v":0,"d":"0.00 kn"}},{"$f":"SUMIFS(prihod[IZNOS],prihod[OPIS],\"<=\"&DatumSredine,prihod[OPIS],\">=\"&DatumPočetka)","v":{"v":0,"d":"0.00 kn"}},{"$f":"SUMIFS(prihod[IZNOS],prihod[OPIS],\"<=\"&DatumSredine,prihod[OPIS],\">=\"&DatumPočetka)","v":{"v":0,"d":"0.00 kn"}},{"$f":"SUMIFS(prihod[IZNOS],prihod[OPIS],\"<=\"&DatumSredine,prihod[OPIS],\">=\"&DatumPočetka)","v":{"v":0,"d":"0.00 kn"}},{"$f":"SUMIFS(prihod[IZNOS],prihod[OPIS],\"<=\"&DatumSredine,prihod[OPIS],\">=\"&DatumPočetka)","v":{"v":0,"d":"0.00 kn"}},{"$f":"SUMIFS(prihod[IZNOS],prihod[OPIS],\"<=\"&DatumSredine,prihod[OPIS],\">=\"&DatumPočetka)","v":{"v":0,"d":"0.00 kn"}},{"$f":"SUMIFS(prihod[IZNOS],prihod[OPIS],\"<=\"&DatumSredine,prihod[OPIS],\">=\"&DatumPočetka)","v":{"v":0,"d":"0.00 kn"}},{"$f":"SUMIFS(prihod[IZNOS],prihod[OPIS],\"<=\"&DatumSredine,prihod[OPIS],\">=\"&DatumPočetka)","v":{"v":0,"d":"0.00 kn"}}]
[null,null,"Prihod 16-EOM",{"$f":"SUMIFS(prihod[IZNOS],prihod[OPIS],\"<=\"&DatumKraja,prihod[OPIS],\">=\"&DatumSredine+1)","v":{"v":0,"d":"0.00 kn"}},{"$f":"SUMIFS(prihod[IZNOS],prihod[OPIS],\"<=\"&DatumKraja,prihod[OPIS],\">=\"&DatumSredine+1)","v":{"v":0,"d":"0.00 kn"}},{"$f":"SUMIFS(prihod[IZNOS],prihod[OPIS],\"<=\"&DatumKraja,prihod[OPIS],\">=\"&DatumSredine+1)","v":{"v":0,"d":"0.00 kn"}},{"$f":"SUMIFS(prihod[IZNOS],prihod[OPIS],\"<=\"&DatumKraja,prihod[OPIS],\">=\"&DatumSredine+1)","v":{"v":0,"d":"0.00 kn"}},{"$f":"SUMIFS(prihod[IZNOS],prihod[OPIS],\"<=\"&DatumKraja,prihod[OPIS],\">=\"&DatumSredine+1)","v":{"v":0,"d":"0.00 kn"}},{"$f":"SUMIFS(prihod[IZNOS],prihod[OPIS],\"<=\"&DatumKraja,prihod[OPIS],\">=\"&DatumSredine+1)","v":{"v":0,"d":"0.00 kn"}},{"$f":"SUMIFS(prihod[IZNOS],prihod[OPIS],\"<=\"&DatumKraja,prihod[OPIS],\">=\"&DatumSredine+1)","v":{"v":0,"d":"0.00 kn"}},{"$f":"SUMIFS(prihod[IZNOS],prihod[OPIS],\"<=\"&DatumKraja,prihod[OPIS],\">=\"&DatumSredine+1)","v":{"v":0,"d":"0.00 kn"}},{"$f":"SUMIFS(prihod[IZNOS],prihod[OPIS],\"<=\"&DatumKraja,prihod[OPIS],\">=\"&DatumSredine+1)","v":{"v":0,"d":"0.00 kn"}},{"$f":"SUMIFS(prihod[IZNOS],prihod[OPIS],\"<=\"&DatumKraja,prihod[OPIS],\">=\"&DatumSredine+1)","v":{"v":0,"d":"0.00 kn"}},{"$f":"SUMIFS(prihod[IZNOS],prihod[OPIS],\"<=\"&DatumKraja,prihod[OPIS],\">=\"&DatumSredine+1)","v":{"v":0,"d":"0.00 kn"}},{"$f":"SUMIFS(prihod[IZNOS],prihod[OPIS],\"<=\"&DatumKraja,prihod[OPIS],\">=\"&DatumSredine+1)","v":{"v":0,"d":"0.00 kn"}}]
[null,null,"Troškovi 1 – 15",{"$f":"SUMIFS(Troškovi[IZNOS],Troškovi[DATUM],\"<=\"&DatumSredine,Troškovi[DATUM],\">=\"&DatumPočetka)","v":{"v":0,"d":"0.00 kn"}},{"$f":"SUMIFS(Troškovi[IZNOS],Troškovi[DATUM],\"<=\"&DatumKraja,Troškovi[DATUM],\">=\"&DatumPočetka)","v":{"v":0,"d":"0.00 kn"}},{"$f":"SUMIFS(Troškovi[IZNOS],Troškovi[DATUM],\"<=\"&DatumKraja,Troškovi[DATUM],\">=\"&DatumPočetka)","v":{"v":0,"d":"0.00 kn"}},{"$f":"SUMIFS(Troškovi[IZNOS],Troškovi[DATUM],\"<=\"&DatumKraja,Troškovi[DATUM],\">=\"&DatumPočetka)","v":{"v":0,"d":"0.00 kn"}},{"$f":"SUMIFS(Troškovi[IZNOS],Troškovi[DATUM],\"<=\"&DatumKraja,Troškovi[DATUM],\">=\"&DatumPočetka)","v":{"v":0,"d":"0.00 kn"}},{"$f":"SUMIFS(Troškovi[IZNOS],Troškovi[DATUM],\"<=\"&DatumKraja,Troškovi[DATUM],\">=\"&DatumPočetka)","v":{"v":0,"d":"0.00 kn"}},{"$f":"SUMIFS(Troškovi[IZNOS],Troškovi[DATUM],\"<=\"&DatumKraja,Troškovi[DATUM],\">=\"&DatumPočetka)","v":{"v":0,"d":"0.00 kn"}},{"$f":"SUMIFS(Troškovi[IZNOS],Troškovi[DATUM],\"<=\"&DatumKraja,Troškovi[DATUM],\">=\"&DatumPočetka)","v":{"v":0,"d":"0.00 kn"}},{"$f":"SUMIFS(Troškovi[IZNOS],Troškovi[DATUM],\"<=\"&DatumKraja,Troškovi[DATUM],\">=\"&DatumPočetka)","v":{"v":0,"d":"0.00 kn"}},{"$f":"SUMIFS(Troškovi[IZNOS],Troškovi[DATUM],\"<=\"&DatumKraja,Troškovi[DATUM],\">=\"&DatumPočetka)","v":{"v":0,"d":"0.00 kn"}},{"$f":"SUMIFS(Troškovi[IZNOS],Troškovi[DATUM],\"<=\"&DatumKraja,Troškovi[DATUM],\">=\"&DatumPočetka)","v":{"v":1225,"d":"1,225.00 kn"}},{"$f":"SUMIFS(Troškovi[IZNOS],Troškovi[DATUM],\"<=\"&DatumKraja,Troškovi[DATUM],\">=\"&DatumPočetka)","v":{"v":6125,"d":"6,125.00 kn"}}]
[null,null,"Troškovi 16-EOM",{"$f":"SUMIFS(Troškovi[IZNOS],Troškovi[DATUM],\"<=\"&DatumKraja,Troškovi[DATUM],\">=\"&DatumSredine+1)","v":{"v":0,"d":"0.00 kn"}},{"$f":"SUMIFS(Troškovi[IZNOS],Troškovi[DATUM],\"<=\"&DatumKraja,Troškovi[DATUM],\">=\"&DatumSredine+1)","v":{"v":0,"d":"0.00 kn"}},{"$f":"SUMIFS(Troškovi[IZNOS],Troškovi[DATUM],\"<=\"&DatumKraja,Troškovi[DATUM],\">=\"&DatumSredine+1)","v":{"v":0,"d":"0.00 kn"}},{"$f":"SUMIFS(Troškovi[IZNOS],Troškovi[DATUM],\"<=\"&DatumKraja,Troškovi[DATUM],\">=\"&DatumSredine+1)","v":{"v":0,"d":"0.00 kn"}},{"$f":"SUMIFS(Troškovi[IZNOS],Troškovi[DATUM],\"<=\"&DatumKraja,Troškovi[DATUM],\">=\"&DatumSredine+1)","v":{"v":0,"d":"0.00 kn"}},{"$f":"SUMIFS(Troškovi[IZNOS],Troškovi[DATUM],\"<=\"&DatumKraja,Troškovi[DATUM],\">=\"&DatumSredine+1)","v":{"v":0,"d":"0.00 kn"}},{"$f":"SUMIFS(Troškovi[IZNOS],Troškovi[DATUM],\"<=\"&DatumKraja,Troškovi[DATUM],\">=\"&DatumSredine+1)","v":{"v":0,"d":"0.00 kn"}},{"$f":"SUMIFS(Troškovi[IZNOS],Troškovi[DATUM],\"<=\"&DatumKraja,Troškovi[DATUM],\">=\"&DatumSredine+1)","v":{"v":0,"d":"0.00 kn"}},{"$f":"SUMIFS(Troškovi[IZNOS],Troškovi[DATUM],\"<=\"&DatumKraja,Troškovi[DATUM],\">=\"&DatumSredine+1)","v":{"v":0,"d":"0.00 kn"}},{"$f":"SUMIFS(Troškovi[IZNOS],Troškovi[DATUM],\"<=\"&DatumKraja,Troškovi[DATUM],\">=\"&DatumSredine+1)","v":{"v":0,"d":"0.00 kn"}},{"$f":"SUMIFS(Troškovi[IZNOS],Troškovi[DATUM],\"<=\"&DatumKraja,Troškovi[DATUM],\">=\"&DatumSredine+1)","v":{"v":100,"d":"100.00 kn"}},{"$f":"SUMIFS(Troškovi[IZNOS],Troškovi[DATUM],\"<=\"&DatumKraja,Troškovi[DATUM],\">=\"&DatumSredine+1)","v":{"v":775,"d":"775.00 kn"}}]

{"sheet":"Troškovi i prihod","index":1,"n_rows":40,"n_cols":10,"rows_kept":40}
[]
[null,null,"Polumjesečni kućni proračun",{"$nulls":6},"PRIHOD I TROŠKOVI"]
[]
[]
[]
[null,null,"PRIHOD",{"$nulls":3},"TROŠKOVI"]
[]
[null,null,"DATUM","OPIS","IZNOS",null,"DATUM","KATEGORIJA","OPIS","IZNOS"]
[null,null,{"$f":"NOW()-14","v":"2013-02-06T14:34:15.840"},"Lukina plaća",{"v":1300,"d":"1,300.00 kn"},null,{"$f":"NOW()-7","v":"2013-02-13T14:34:15.840"},"Domaćinstvo","Kredit",{"v":1000,"d":"1,000.00 kn"}]
[null,null,{"$f":"NOW()-14","v":"2013-02-06T14:34:15.840"},"Zrinkina plaća",{"v":1300,"d":"1,300.00 kn"},null,{"$f":"NOW()-7","v":"2013-02-13T14:34:15.840"},"Domaćinstvo","Električna energija",{"v":100,"d":"100.00 kn"}]
[null,null,{"$f":"NOW()-28","v":"2013-01-23T14:34:15.840"},"Lukina plaća",{"v":1500,"d":"1,500.00 kn"},null,"2013-02-13T14:34:15.840","Domaćinstvo","Voda/kanalizacija",{"v":50,"d":"50.00 kn"}]
[null,null,"2013-01-23T14:34:15.840","Zrinkina plaća",{"v":1600,"d":"1,600.00 kn"},null,"2013-02-13T14:34:15.840","Domaćinstvo","Otpad",{"v":25,"d":"25.00 kn"}]
[null,null,{"$f":"NOW()-42","v":"2013-01-09T14:34:15.840"},"Lukina plaća",{"v":1300,"d":"1,300.00 kn"},null,"2013-02-13T14:34:15.840","Domaćinstvo","Mobitel",{"v":100,"d":"100.00 kn"}]
[null,null,"2013-01-09T14:34:15.840","Zrinkina plaća",{"v":1300,"d":"1,300.00 kn"},null,"2013-02-13T14:34:15.840","Domaćinstvo","Kućni telefon",{"v":30,"d":"30.00 kn"}]
[null,null,{"$f":"NOW()-56","v":"2012-12-26T14:34:15.840"},"Lukina plaća",{"v":1500,"d":"1,500.00 kn"},null,"2013-02-13T14:34:15.840","Domaćinstvo","Internet",{"v":50,"d":"50.00 kn"}]
[null,null,"2012-12-26T14:34:15.840","Zrinkina plaća",{"v":1600,"d":"1,600.00 kn"},null,"2013-02-13T14:34:15.840","Domaćinstvo","Televizija",{"v":50,"d":"50.00 kn"}]
[null,null,{"$f":"NOW()-70","v":"2012-12-12T14:34:15.840"},"Lukina plaća",{"v":1300,"d":"1,300.00 kn"},null,"2013-02-13T14:34:15.840","Domaćinstvo","Održavanje/popravci",{"v":25,"d":"25.00 kn"}]
[{"$nulls":6},{"$f":"NOW()-8","v":"2013-02-12T14:34:15.840"},"Domaćinstvo","Kreditna kartica 1",{"v":100,"d":"100.00 kn"}]
[{"$nulls":6},{"$f":"NOW()-9","v":"2013-02-11T14:34:15.840"},"Zabava","Filmovi",{"v":37,"d":"37.00 kn"}]
[{"$nulls":6},{"$f":"NOW()-10","v":"2013-02-10T14:34:15.840"},"Hrana","Namirnice",{"v":350,"d":"350.00 kn"}]
[{"$nulls":6},{"$f":"NOW()-11","v":"2013-02-09T14:34:15.840"},"Hrana","Večere vani",{"v":75,"d":"75.00 kn"}]
[{"$nulls":6},{"$f":"NOW()-12","v":"2013-02-08T14:34:15.840"},"Djeca","Novac za ručak",{"v":150,"d":"150.00 kn"}]
[{"$nulls":6},{"$f":"NOW()-13","v":"2013-02-07T14:34:15.840"},"Ulaganja","Ušteđevina",{"v":250,"d":"250.00 kn"}]
[{"$nulls":6},{"$f":"NOW()-14","v":"2013-02-06T14:34:15.840"},"Ulaganja","Ulaganja",{"v":250,"d":"250.00 kn"}]
[{"$nulls":6},{"$f":"NOW()-15","v":"2013-02-05T14:34:15.840"},"Osobno","Teretana i fitness centar",{"v":100,"d":"100.00 kn"}]
[{"$nulls":6},{"$f":"NOW()-16","v":"2013-02-04T14:34:15.840"},"Kućni ljubimci","Hrana",{"v":50,"d":"50.00 kn"}]
[{"$nulls":6},{"$f":"NOW()-20","v":"2013-01-31T14:34:15.840"},"Kućni ljubimci","Osobna njega",{"v":50,"d":"50.00 kn"}]
[{"$nulls":6},{"$f":"NOW()-20","v":"2013-01-31T14:34:15.840"},"Kućni ljubimci","Ostalo",{"v":50,"d":"50.00 kn"}]
[{"$nulls":6},{"$f":"NOW()-25","v":"2013-01-26T14:34:15.840"},"Prijevoz","Kredit za automobil 1",{"v":300,"d":"300.00 kn"}]
[{"$nulls":6},{"$f":"NOW()-25","v":"2013-01-26T14:34:15.840"},"Prijevoz","Kredit za automobil 2",{"v":350,"d":"350.00 kn"}]
[{"$nulls":6},{"$f":"NOW()-25","v":"2013-01-26T14:34:15.840"},"Prijevoz","Osiguranje automobila",{"v":50,"d":"50.00 kn"}]
[{"$nulls":6},{"$f":"NOW()-30","v":"2013-01-21T14:34:15.840"},"Prijevoz","Gorivo",{"v":50,"d":"50.00 kn"}]
[{"$nulls":6},{"$f":"NOW()-31","v":"2013-01-20T14:34:15.840"},"Prijevoz","Gorivo",{"v":25,"d":"25.00 kn"}]
[{"$nulls":6},{"$f":"NOW()-42","v":"2013-01-09T14:34:15.840"},"Prijevoz","Održavanje/popravci",{"v":150,"d":"150.00 kn"}]
[{"$nulls":6},{"$f":"NOW()-45","v":"2013-01-06T14:34:15.840"},"Domaćinstvo","Kredit",{"v":5000,"d":"5,000.00 kn"}]
[{"$nulls":6},{"$f":"NOW()-50","v":"2013-01-01T14:34:15.840"},"Domaćinstvo","Zalihe",{"v":200,"d":"200.00 kn"}]
[{"$nulls":6},{"$f":"NOW()-65","v":"2012-12-17T14:34:15.840"},"Domaćinstvo","Kućni telefon",{"v":100,"d":"100.00 kn"}]
[{"$nulls":6},{"$f":"NOW()-70","v":"2012-12-12T14:34:15.840"},"Domaćinstvo","Otpad",{"v":50,"d":"50.00 kn"}]
[{"$nulls":6},{"$f":"NOW()-75","v":"2012-12-07T14:34:15.840"},"Domaćinstvo","Kredit",{"v":1000,"d":"1,000.00 kn"}]
[{"$nulls":6},{"$f":"NOW()-78","v":"2012-12-04T14:34:15.840"},"Zabava","Filmovi",{"v":75,"d":"75.00 kn"}]

{"sheet":"Izvješće o proračunu","index":2,"n_rows":41,"n_cols":8,"rows_kept":41}
[]
[null,null,"Polumjesečni kućni proračun",{"$nulls":4},"IZVJEŠĆE O PRORAČUNU"]
{"$rows_empty":10}
[null,null,"TROŠKOVI",null,null,"UKUPNI IZNOS KATEGORIJE"]
[]
[null,null,"OPIS","UKUPNO "]
[null,null,"Električna energija",{"v":100,"d":"100 kn"}]
[null,null,"Filmovi",{"v":112,"d":"112 kn"}]
[null,null,"Gorivo",{"v":75,"d":"75 kn"}]
[null,null,"Hrana",{"v":50,"d":"50 kn"}]
[null,null,"Internet",{"v":50,"d":"50 kn"}]
[null,null,"Kredit",{"v":7000,"d":"7,000 kn"}]
[null,null,"Kredit za automobil 1",{"v":300,"d":"300 kn"}]
[null,null,"Kredit za automobil 2",{"v":350,"d":"350 kn"}]
[null,null,"Kreditna kartica 1",{"v":100,"d":"100 kn"}]
[null,null,"Kućni telefon",{"v":130,"d":"130 kn"}]
[null,null,"Mobitel",{"v":100,"d":"100 kn"}]
[null,null,"Namirnice",{"v":350,"d":"350 kn"}]
[null,null,"Novac za ručak",{"v":150,"d":"150 kn"}]
[null,null,"Održavanje/popravci",{"v":175,"d":"175 kn"}]
[null,null,"Osiguranje automobila",{"v":50,"d":"50 kn"}]
[null,null,"Osobna njega",{"v":50,"d":"50 kn"}]
[null,null,"Ostalo",{"v":50,"d":"50 kn"}]
[null,null,"Otpad",{"v":75,"d":"75 kn"}]
[null,null,"Televizija",{"v":50,"d":"50 kn"}]
[null,null,"Teretana i fitness centar",{"v":100,"d":"100 kn"}]
[null,null,"Ulaganja",{"v":250,"d":"250 kn"}]
[null,null,"Ušteđevina",{"v":250,"d":"250 kn"}]
[null,null,"Večere vani",{"v":75,"d":"75 kn"}]
[null,null,"Voda/kanalizacija",{"v":50,"d":"50 kn"}]
[null,null,"Zalihe",{"v":200,"d":"200 kn"}]
[null,null,"UKUPNO",{"v":10242,"d":"10,242 kn"}]

{"sheet":"Popisi podataka","index":3,"n_rows":20,"n_cols":14,"rows_kept":20}
[]
[null,null,"Polumjesečni kućni proračun",{"$nulls":10},"POPISI PODATAKA"]
[]
[]
[null,null,"POSTAVLJANJE         Podacima o kategorijama u nastavku popunjavaju se padajući popisi u tablici Troškovi na listu Troškovi i prihod. Da biste ažurirali popise izmijenite nazive kategorija ili opise ispod pojedine kategorije."]
[]
[null,null,"Domaćinstvo","Zabava","Hrana","Pokloni/donacije","Djeca","Ulaganja","Liječnički troškovi","Ostalo","Osobno","Kućni ljubimci","Porezi/pravni troškovi","Prijevoz"]
[null,null,"Kredit","Filmovi","Namirnice","Dobrotvorni prilozi 1","Odjeća","IRA","Liječnici/liječenje","Ostalo","Odjeća","Hrana","Federalni","Kredit za automobil 1"]
[null,null,"Električna energija","Video/filmovi","Večere vani","Dobrotvorni prilozi 2","Igračke/igre","Ušteđevina","Osiguranje","Organization Dues","Frizer i manikura","Zalihe","Državni","Kredit za automobil 2"]
[null,null,"Voda/kanalizacija","Glazba",null,"Dobrotvorni prilozi 3","Novac za ručak","Tekući",null,null,"Usluge kemijskog čišćenja","Liječnički troškovi","Lokalni","Osiguranje automobila"]
[null,null,"Otpad","Koncerti/kazalište",null,"Darovi","Članarine/naknade","Mirovina",null,null,"Teretana i fitness centar","Osobna njega","Other","Registracija"]
[null,null,"Mobitel","Sportski događaji",null,null,"SŠkolski pribor","Ulaganja",null,null,"Kupnja","Ostalo","Odvjetnik","Gorivo"]
[null,null,"Kućni telefon","Ostalo",null,null,"Ostalo","Fakultet",null,null,"Ostalo",null,"Uzdržavanje djece","Održavanje/popravci"]
[null,null,"Internet",{"$nulls":3},"Rublje","Krediti",{"$nulls":4},"Alimentacija","Javni prijevoz"]
[null,null,"Televizija",{"$nulls":4},"Studentski krediti",{"$nulls":4},"Ostalo"]
[null,null,"Održavanje/popravci"]
[null,null,"Zalihe"]
[null,null,"Kablovska TV/internet/telefon"]
[null,null,"Kreditna kartica 1"]
[null,null,"Kreditna kartica 2"]

{"sheet":"Zaokretna tablica kategorija","index":4,"n_rows":16,"n_cols":14,"rows_kept":16,"hidden":true}
[]
[null,null,"Polumjesečni kućni proračun",{"$nulls":10},"ZAOKRETNA TABLICA KATEGORIJE"]
[]
[]
[null,"Ova je zaokretna tablica izvor podataka za zaokretni grafikon Ukupni iznosi kategorija. "]
[]
[null,null,"Natpisi redaka","Zbroj od IZNOS"]
[null,null,"Djeca",{"v":150,"d":"150 kn"}]
[null,null,"Domaćinstvo",{"v":7880,"d":"7,880 kn"}]
[null,null,"Hrana",{"v":425,"d":"425 kn"}]
[null,null,"Kućni ljubimci",{"v":150,"d":"150 kn"}]
[null,null,"Osobno",{"v":100,"d":"100 kn"}]
[null,null,"Prijevoz",{"v":925,"d":"925 kn"}]
[null,null,"Ulaganja",{"v":500,"d":"500 kn"}]
[null,null,"Zabava",{"v":112,"d":"112 kn"}]
[null,null,"Sveukupno",{"v":10242,"d":"10,242 kn"}]